fUST/lending_fUST_20250725
["ID","MTS","AMOUNT","RATE_DAILY","PERIOD"]
[374632840,1753389044428,-460.0,0.00019495,2]
[374632841,1753389044438,-460.0,0.00019495,2]
[374632842,1753389044449,-460.0,0.00019495,2]
[374632843,1753389044459,-1736.23,0.00019495,2]
[374632844,1753389044468,-1856.06,0.00019495,2]
[374632845,1753389044478,-698.26,0.00019495,2]
[374632846,1753389044487,-974.06,0.00019495,2]
[374632847,1753389044497,-797.93,0.00019495,2]
[374632848,1753389044507,-460.0,0.00019495,2]
[374632849,1753389044517,-1177.96,0.00019495,2]
[374632850,1753389044527,-460.0,0.00019495,2]
[374632851,1753389044536,-460.0,0.00019495,2]
[374632852,1753389044546,-460.0,0.00019495,2]
[374632853,1753389044556,-460.0,0.00019495,2]
[374632854,1753389044566,-460.0,0.00019495,2]
[374632855,1753389044575,-3133.23,0.00019495,2]
[374632856,1753389044585,-474.29,0.00019495,2]
[374632857,1753389044594,-460.0,0.00019495,2]
[374632858,1753389044604,-600.81,0.00019495,2]
[374632859,1753389044613,-253.94125201,0.00019495,2]
[374632860,1753389044624,-460.0,0.00019495,2]
[374632861,1753389044634,-460.0,0.00019495,2]
[374632862,1753389044643,-2025.28,0.00019495,2]
[374632863,1753389044653,-1060.02,0.00019495,2]
[374632864,1753389044662,-968.26,0.00019495,2]
[374632865,1753389044672,-467.08440281,0.00019495,2]
[374632866,1753389044681,-994.38,0.00019495,2]
[374632867,1753389044691,-3002.89,0.00019495,2]
[374632868,1753389044701,-460.0,0.00019495,2]
[374632869,1753389044710,-460.0,0.00019495,2]
[374632870,1753389044720,-849.41,0.00019495,2]
[374632871,1753389044729,-460.0,0.00019495,2]
[374632872,1753389044738,-460.0,0.00019495,2]
[374632873,1753389044747,-2995.49,0.00019495,2]
[374632874,1753389044756,-460.0,0.00019495,2]
[374632875,1753389044765,-779.45,0.00019495,2]
[374632876,1753389044775,-460.0,0.00019495,2]
[374632877,1753389044784,-460.0,0.00019495,2]
[374632878,1753389044794,-460.0,0.00019495,2]
[374632879,1753389044803,-513.77,0.00019495,2]
[374632880,1753389044812,-460.0,0.00019495,2]
[374632881,1753389044823,-460.0,0.00019495,2]
[374632882,1753389044832,-931.68,0.00019495,2]
[374632883,1753389044841,-1087.62,0.00019495,2]
[374632884,1753389044851,-460.0,0.00019495,2]
[374632885,1753389044860,-465.81800316,0.00019495,2]
[374632886,1753389044870,-518.14,0.00019495,2]
[374632887,1753389044881,-460.0,0.00019495,2]
[374632888,1753389044891,-960.43,0.00019495,2]
[374632889,1753389044900,-460.0,0.00019495,2]
[374632890,1753389044909,-316.93484419,0.00019495,2]
[374632891,1753389044920,-460.0,0.00019496,2]
[374632892,1753389044929,-460.0,0.00019496,2]
[374632893,1753389044939,-460.0,0.00019496,2]
[374632894,1753389044950,-460.0,0.00019496,2]
[374632895,1753389044960,-460.0,0.00019496,2]
[374632896,1753389044969,-460.0,0.00019496,2]
[374632897,1753389044979,-460.0,0.00019496,2]
[374632898,1753389044988,-460.0,0.00019496,2]
[374632899,1753389044998,-460.0,0.00019496,2]
[374632900,1753389045007,-460.0,0.00019496,2]
[374632901,1753389045016,-460.0,0.00019496,2]
[374632902,1753389045026,-460.0,0.00019496,2]
[374632903,1753389045035,-460.0,0.00019496,2]
[374632904,1753389045044,-460.0,0.00019496,2]
[374632905,1753389045053,-476.49,0.00019496,2]
[374632906,1753389045063,-460.0,0.00019496,2]
[374632907,1753389045072,-460.0,0.00019496,2]
[374632908,1753389045082,-460.0,0.00019496,2]
[374632909,1753389045094,-460.0,0.00019496,2]
[374632910,1753389045103,-460.0,0.00019496,2]
[374632911,1753389045112,-460.0,0.00019496,2]
[374632912,1753389045121,-460.0,0.00019496,2]
[374632913,1753389045131,-460.0,0.00019496,2]
[374632914,1753389045140,-460.0,0.00019496,2]
[374632915,1753389045150,-460.0,0.00019496,2]
[374632916,1753389045159,-460.0,0.00019496,2]
[374632917,1753389045168,-460.0,0.00019496,2]
[374632918,1753389045178,-470.02,0.00019496,2]
[374632919,1753389045187,-460.0,0.00019496,2]
[374632920,1753389045197,-460.0,0.00019496,2]
[374632921,1753389045207,-460.0,0.00019496,2]
[374632922,1753389045216,-460.0,0.00019496,2]
[374632923,1753389045226,-460.0,0.00019496,2]
[374632924,1753389045235,-468.31810975,0.00019496,2]
[374632925,1753389045245,-733.25,0.00019496,2]
[374632926,1753389045254,-460.0,0.00019496,2]
[374632927,1753389045264,-460.0,0.00019496,2]
[374632928,1753389045274,-2677.68,0.00019496,2]
[374632929,1753389045283,-460.0,0.00019496,2]
[374632930,1753389045294,-2195.58,0.00019496,2]
[374632931,1753389045303,-460.0,0.00019496,2]
[374632932,1753389045313,-414.05264003,0.00019496,2]
[374632933,1753389045322,-307.86497023,0.00019496,2]
[374632934,1753389045332,-460.0,0.00019496,2]
[374632935,1753389045341,-460.0,0.00019496,2]
[374632936,1753389045351,-332.23207173,0.00019496,2]
[374632937,1753389045360,-460.0,0.00019496,2]
[374632938,1753389045370,-875.24,0.00019496,2]
[374632939,1753389045379,-460.0,0.00019496,2]
[374632940,1753389045389,-460.0,0.00019496,2]
[374632941,1753389045398,-460.0,0.00019496,2]
[374632942,1753389045407,-460.0,0.00019496,2]
[374632943,1753389045417,-460.0,0.00019496,2]
[374632944,1753389045426,-614.59,0.00019496,2]
[374632945,1753389045436,-4260.57189594,0.00019497,2]
[374632946,1753389045446,-1995.28303542,0.00019571,2]
[374632947,1753389045601,-380.07545794,0.00019573,2]
[374632948,1753389045612,-460.0,0.00019593,2]
[374632949,1753389045622,-460.0,0.00019593,2]
[374632950,1753389045631,-460.0,0.00019593,2]
[374632951,1753389045640,-460.0,0.00019593,2]
[374632952,1753389045650,-460.0,0.00019593,2]
[374632953,1753389045659,-460.0,0.00019594,2]
[374632954,1753389045668,-460.0,0.00019594,2]
[374632955,1753389045678,-745.67,0.00019594,2]
[374632956,1753389045687,-460.0,0.00019594,2]
[374632957,1753389045698,-460.0,0.00019594,2]
[374632958,1753389045708,-460.0,0.00019594,2]
[374632959,1753389045717,-460.0,0.00019594,2]
[374632960,1753389045727,-460.0,0.00019594,2]
[374632961,1753389045736,-468.15342368,0.00019594,2]
[374632962,1753389045746,-460.0,0.00019594,2]
[374632963,1753389045755,-185.02,0.00019594,2]
[374632964,1753389045764,-1443.36,0.00019594,2]
[374632965,1753389045774,-460.0,0.00019594,2]
[374632966,1753389045783,-460.0,0.00019594,2]
[374632968,1753389045792,-460.0,0.00019594,2]
[374632969,1753389045802,-460.0,0.00019594,2]
[374632970,1753389045811,-581.91,0.00019594,2]
[374632971,1753389045820,-460.0,0.00019594,2]
[374632972,1753389045830,-460.0,0.00019594,2]
[374632973,1753389045839,-460.0,0.00019594,2]
[374632974,1753389045849,-560.04779064,0.00019594,2]
[374632975,1753389045858,-460.0,0.00019594,2]
[374632976,1753389045869,-460.0,0.00019594,2]
[374632978,1753389045883,-460.0,0.00019594,2]
[374632979,1753389045892,-269.77318877,0.00019594,2]
[374632980,1753389045901,-460.0,0.00019594,2]
[374632981,1753389045910,-460.0,0.00019594,2]
[374632982,1753389045921,-460.0,0.00019594,2]
[374632984,1753389045931,-460.0,0.00019594,2]
[374632986,1753389045940,-460.0,0.00019594,2]
[374632987,1753389045950,-460.0,0.00019594,2]
[374632989,1753389045960,-1134.46,0.00019594,2]
[374632991,1753389045969,-460.0,0.00019594,2]
[374632993,1753389045979,-460.0,0.00019594,2]
[374632995,1753389045989,-460.0,0.00019594,2]
[374632996,1753389045998,-460.0,0.00019594,2]
[374632997,1753389046008,-460.0,0.00019594,2]
[374632999,1753389046017,-422.0,0.00019594,2]
[374633001,1753389046026,-460.0,0.00019594,2]
[374633003,1753389046035,-460.0,0.00019594,2]
[374633005,1753389046044,-460.0,0.00019594,2]
[374633007,1753389046054,-460.0,0.00019594,2]
[374633009,1753389046063,-460.0,0.00019594,2]
[374633011,1753389046073,-460.0,0.00019594,2]
[374633013,1753389046086,-460.0,0.00019594,2]
[374633015,1753389046096,-461.39437186,0.00019597,2]
[374633018,1753389046107,-460.0,0.00019597,2]
[374633020,1753389046117,-460.0,0.00019597,2]
[374633022,1753389046127,-460.0,0.00019597,2]
[374633024,1753389046138,-1094.36,0.00019597,2]
[374633025,1753389046147,-746.37,0.00019597,2]
[374633027,1753389046158,-460.0,0.00019597,2]
[374633030,1753389046168,-460.0,0.00019597,2]
[374633032,1753389046178,-460.0,0.00019597,2]
[374633034,1753389046189,-286.59412107,0.00019597,2]
[374633036,1753389046198,-460.0,0.00019597,2]
[374633038,1753389046208,-460.0,0.00019597,2]
[374633040,1753389046217,-484.22923534,0.00019767,2]
[374633042,1753389046227,-460.0,0.00019767,2]
[374633043,1753389046237,-460.0,0.00019767,2]
[374633046,1753389046247,-601.15,0.00019767,2]
[374633047,1753389046256,-645.07,0.00019767,2]
[374633050,1753389046265,-460.0,0.00019767,2]
[374633052,1753389046275,-682.46,0.00019767,2]
[374633054,1753389046284,-460.0,0.00019767,2]
[374633056,1753389046294,-460.0,0.00019767,2]
[374633057,1753389046303,-460.0,0.00019767,2]
[374633060,1753389046313,-7953.31,0.00019767,2]
[374633062,1753389046323,-460.0,0.00019767,2]
[374633063,1753389046332,-2801.23,0.00019767,2]
[374633064,1753389046341,-460.0,0.00019767,2]
[374633065,1753389046351,-460.0,0.00019767,2]
[374633066,1753389046360,-612.35,0.00019767,2]
[374633067,1753389046369,-769.11,0.00019767,2]
[374633068,1753389046379,-2563.23,0.00019767,2]
[374633069,1753389046388,-460.0,0.00019767,2]
[374633070,1753389046397,-460.0,0.00019767,2]
[374633071,1753389046407,-3081.33,0.00019767,2]
[374633072,1753389046416,-460.0,0.00019767,2]
[374633073,1753389046425,-460.0,0.00019767,2]
[374633074,1753389046434,-718.43,0.00019767,2]
[374633075,1753389046444,-460.0,0.00019767,2]
[374633076,1753389046454,-460.0,0.00019767,2]
[374633077,1753389046463,-460.0,0.00019768,2]
[374633078,1753389046476,-460.0,0.00019768,2]
[374633079,1753389046486,-460.0,0.00019768,2]
[374633080,1753389046495,-460.0,0.00019768,2]
[374633081,1753389046504,-460.0,0.00019768,2]
[374633082,1753389046513,-460.0,0.00019768,2]
[374633083,1753389046522,-471.11460237,0.00019768,2]
[374633084,1753389046533,-2220.01,0.00019768,2]
[374633085,1753389046542,-460.0,0.00019768,2]
[374633086,1753389046553,-476.23733361,0.00019768,2]
[374633087,1753389046563,-460.0,0.00019768,2]
[374633088,1753389046572,-460.0,0.00019768,2]
[374633089,1753389046582,-2050.54,0.00019768,2]
[374633090,1753389046591,-936.79,0.00019768,2]
[374633091,1753389046600,-853.52,0.00019768,2]
[374633093,1753389046610,-518.34,0.00019768,2]
[374633094,1753389046619,-460.0,0.00019768,2]
[374633095,1753389046628,-678.23,0.00019768,2]
[374633096,1753389046637,-1208.71,0.00019768,2]
[374633097,1753389046646,-460.0,0.00019768,2]
[374633098,1753389046656,-460.0,0.00019768,2]
[374633099,1753389046665,-460.0,0.00019768,2]
[374633100,1753389046674,-861.27,0.00019768,2]
[374633101,1753389046684,-460.0,0.00019768,2]
[374633102,1753389046694,-764.72,0.00019768,2]
[374633103,1753389046704,-460.0,0.00019768,2]
[374633104,1753389046714,-5976.16,0.00019768,2]
[374633105,1753389046723,-462.26943899,0.00019769,2]
[374633106,1753389046733,-460.0,0.00019769,2]
[374633107,1753389046742,-460.0,0.00019769,2]
[374633108,1753389046752,-342.20601461,0.00019769,2]
[374633110,1753389046762,-367.19124333,0.00019769,2]
[374633111,1753389046772,-464.9056258,0.00019769,2]
[374633112,1753389046782,-460.0,0.00019769,2]
[374633113,1753389046792,-494.81,0.00019769,2]
[374633115,1753389046802,-460.0,0.00019769,2]
[374633117,1753389046811,-460.0,0.00019769,2]
[374633119,1753389046820,-460.0,0.00019769,2]
[374633121,1753389046830,-491.9,0.00019769,2]
[374633123,1753389046841,-460.0,0.00019769,2]
[374633125,1753389046851,-888.2,0.00019769,2]
[374633127,1753389046860,-460.0,0.00019769,2]
[374633129,1753389046870,-460.0,0.00019769,2]
[374633131,1753389046882,-460.0,0.00019769,2]
[374633133,1753389046891,-460.0,0.00019769,2]
[374633135,1753389046901,-460.0,0.00019769,2]
[374633137,1753389046910,-460.0,0.00019769,2]
[374633139,1753389046921,-460.0,0.00019769,2]
[374633141,1753389046931,-460.0,0.00019769,2]
[374633143,1753389046940,-460.0,0.00019769,2]
[374633145,1753389046951,-711.15,0.00019769,2]
[374633147,1753389046960,-460.0,0.00019769,2]
[374633149,1753389046969,-460.0,0.00019769,2]
[374633151,1753389046978,-460.0,0.00019769,2]
[374633153,1753389046988,-460.0,0.00019769,2]
[374633155,1753389046998,-460.0,0.00019769,2]
[374633157,1753389047008,-1736.23,0.00019769,2]
[374633159,1753389047017,-1856.06,0.00019769,2]
[374633161,1753389047026,-698.26,0.00019769,2]
[374633163,1753389047036,-974.06,0.00019769,2]
[374633165,1753389047046,-797.93,0.00019769,2]
[374633167,1753389047055,-460.0,0.00019769,2]
[374633169,1753389047065,-1177.96,0.00019769,2]
[374633171,1753389047074,-460.0,0.00019769,2]
[374633173,1753389047084,-460.0,0.00019769,2]
[374633175,1753389047093,-460.0,0.00019769,2]
[374633177,1753389047103,-460.0,0.00019769,2]
[374633179,1753389047112,-460.0,0.00019769,2]
[374633181,1753389047122,-3133.23,0.00019769,2]
[374633183,1753389047131,-474.29,0.00019769,2]
[374633185,1753389047141,-460.0,0.00019769,2]
[374633187,1753389047150,-600.81,0.00019769,2]
[374633189,1753389047160,-460.0,0.00019769,2]
[374633191,1753389047169,-460.0,0.00019769,2]
[374633192,1753389047178,-2025.28,0.00019769,2]
[374633193,1753389047188,-1060.02,0.00019769,2]
[374633194,1753389047197,-968.26,0.00019769,2]
[374633195,1753389047207,-994.38,0.00019769,2]
[374633196,1753389047216,-3002.89,0.00019769,2]
[374633197,1753389047225,-460.0,0.00019769,2]
[374633198,1753389047235,-460.0,0.00019769,2]
[374633199,1753389047245,-849.41,0.00019769,2]
[374633200,1753389047254,-460.0,0.00019769,2]
[374633201,1753389047263,-460.0,0.00019769,2]
[374633202,1753389047273,-2995.49,0.00019769,2]
[374633203,1753389047282,-460.0,0.00019769,2]
[374633204,1753389047291,-779.45,0.00019769,2]
[374633205,1753389047300,-460.0,0.00019769,2]
[374633206,1753389047309,-460.0,0.00019769,2]
[374633207,1753389047318,-513.77,0.00019769,2]
[374633208,1753389047328,-460.0,0.00019769,2]
[374633209,1753389047338,-460.0,0.00019769,2]
[374633210,1753389047348,-931.68,0.00019769,2]
[374633211,1753389047358,-1087.62,0.00019769,2]
[374633212,1753389047368,-460.0,0.00019769,2]
[374633213,1753389047377,-518.14,0.00019769,2]
[374633214,1753389047387,-216.24105565,0.00019769,2]
[374633215,1753389047397,-960.43,0.00019769,2]
[374633216,1753389047407,-460.0,0.00019769,2]
[374633217,1753389047417,-460.0,0.0001977,2]
[374633218,1753389047427,-292.8985634,0.0001977,2]
[374633219,1753389047436,-460.0,0.0001977,2]
[374633220,1753389047455,-460.0,0.0001977,2]
[374633221,1753389047466,-460.0,0.0001977,2]
[374633222,1753389047476,-349.6591925,0.0001977,2]
[374633223,1753389047486,-460.0,0.0001977,2]
[374633224,1753389047495,-460.0,0.0001977,2]
[374633225,1753389047505,-460.0,0.0001977,2]
[374633226,1753389047515,-476.49,0.0001977,2]
[374633227,1753389047525,-460.0,0.0001977,2]
[374633228,1753389047536,-388.9331166,0.0001977,2]
[374633229,1753389047545,-393.29310321,0.0001977,2]
[374633230,1753389047554,-460.0,0.0001977,2]
[374633231,1753389047564,-192.40003544,0.0001977,2]
[374633232,1753389047573,-470.42540862,0.0001977,2]
[374633233,1753389047583,-460.0,0.0001977,2]
[374633234,1753389047592,-460.0,0.0001977,2]
[374633235,1753389047602,-460.0,0.0001977,2]
[374633236,1753389047612,-470.02,0.0001977,2]
[374633237,1753389047622,-575.58999031,0.0001977,2]
[374633238,1753389047632,-460.0,0.0001977,2]
[374633239,1753389047642,-460.0,0.0001977,2]
[374633240,1753389047652,-460.0,0.0001977,2]
[374633241,1753389047661,-460.0,0.0001977,2]
[374633243,1753389047671,-733.25,0.0001977,2]
[374633245,1753389047681,-460.0,0.0001977,2]
[374633247,1753389047691,-2677.68,0.0001977,2]
[374633255,1753389047830,-460.0,0.0001977,2]
[374633257,1753389047840,-2195.58,0.0001977,2]
[374633259,1753389047850,-255.55403481,0.0001977,2]
[374633260,1753389047859,-175.21622718,0.0001977,2]
[374633262,1753389047869,-460.0,0.0001977,2]
[374633263,1753389047884,-460.0,0.0001977,2]
[374633264,1753389047893,-875.24,0.0001977,2]
[374633265,1753389047903,-460.0,0.0001977,2]
[374633266,1753389047914,-460.0,0.0001977,2]
[374633267,1753389047923,-460.0,0.0001977,2]
[374633268,1753389047933,-460.0,0.0001977,2]
[374633269,1753389047943,-614.59,0.0001977,2]
[374633270,1753389047956,-504.0,0.00019773,2]
[374633271,1753389047966,-151.0,0.000198,2]
[374633272,1753389047976,-1000.0,0.00019821,2]
[374633273,1753389047986,-1000.0,0.00019821,2]
[374633274,1753389047995,-460.0,0.00019867,2]
[374633275,1753389048005,-460.0,0.00019867,2]
[374633276,1753389048015,-460.0,0.00019867,2]
[374633277,1753389048025,-460.0,0.00019867,2]
[374633278,1753389048035,-460.0,0.00019868,2]
[374633279,1753389048044,-745.67,0.00019868,2]
[374633280,1753389048055,-460.0,0.00019868,2]
[374633281,1753389048064,-460.0,0.00019868,2]
[374633282,1753389048074,-460.0,0.00019868,2]
[374633283,1753389048083,-460.0,0.00019868,2]
[374633284,1753389048094,-1443.36,0.00019868,2]
[374633285,1753389048103,-460.0,0.00019868,2]
[374633286,1753389048113,-460.0,0.00019868,2]
[374633287,1753389048122,-466.6653743,0.00019868,2]
[374633288,1753389048131,-559.66935542,0.00019868,2]
[374633289,1753389048140,-581.91,0.00019868,2]
[374633290,1753389048149,-460.0,0.00019868,2]
[374633291,1753389048159,-400.54044011,0.00019868,2]
[374633292,1753389048168,-460.0,0.00019868,2]
[374633293,1753389048177,-460.0,0.00019868,2]
[374633294,1753389048186,-460.0,0.00019868,2]
[374633295,1753389048196,-460.0,0.00019868,2]
[374633296,1753389048205,-460.0,0.00019868,2]
[374633297,1753389048215,-460.0,0.00019868,2]
[374633298,1753389048225,-460.0,0.00019868,2]
[374633299,1753389048235,-460.0,0.00019868,2]
[374633300,1753389048245,-460.0,0.00019868,2]
[374633301,1753389048254,-1134.46,0.00019868,2]
[374633302,1753389048265,-460.0,0.00019868,2]
[374633303,1753389048275,-460.0,0.00019868,2]
[374633304,1753389048284,-460.0,0.00019868,2]
[374633305,1753389048294,-460.0,0.00019868,2]
[374633306,1753389048304,-460.0,0.00019868,2]
[374633307,1753389048314,-460.0,0.00019868,2]
[374633308,1753389048324,-460.0,0.00019868,2]
[374633309,1753389048333,-460.0,0.00019868,2]
[374633310,1753389048342,-460.0,0.00019868,2]
[374633311,1753389048352,-460.0,0.00019868,2]
[374633312,1753389048362,-460.0,0.00019868,2]
[374633313,1753389048371,-460.0,0.00019868,2]
[374633314,1753389048381,-250.0,0.0001987,2]
[374633315,1753389048391,-199.886,0.0001987,2]
[374633316,1753389048400,-460.0,0.00019871,2]
[374633317,1753389048410,-1094.36,0.00019871,2]
[374633318,1753389048419,-746.37,0.00019871,2]
[374633319,1753389048429,-460.0,0.00019871,2]
[374633320,1753389048439,-460.0,0.00019871,2]
[374633321,1753389048448,-234.20491421,0.00019871,2]
[374633322,1753389048459,-460.0,0.00019871,2]
[374633323,1753389048468,-460.0,0.00019871,2]
[374633324,1753389048478,-500.0,0.00019873,2]
[374633325,1753389048491,-500.0,0.00019873,2]
[374633326,1753389048501,-500.0,0.00019873,2]
[374633327,1753389048510,-500.0,0.00019873,2]
[374633328,1753389048520,-641.7112121,0.00019885,2]
[374633329,1753389048530,-151.0,0.000199,2]
[374633330,1753389048540,-3151.07377157,0.000199,2]
[374633331,1753389048550,-319.8947657,0.00019921,2]
[374633332,1753389048560,-501.57043918,0.00019921,2]
[374633333,1753389048569,-260.88965729,0.00019921,2]
[374633334,1753389048579,-534.42479984,0.00019921,2]
[374633335,1753389048589,-1000.0,0.00019921,2]
[374633336,1753389048599,-1000.0,0.00019921,2]
[374633337,1753389048609,-1995.28303542,0.00019969,2]
[374633338,1753389048619,-500.38,0.00019973,2]
[374633339,1753389048629,-500.0,0.00019973,2]
[374633340,1753389048639,-500.0,0.00019973,2]
[374633341,1753389048649,-500.0,0.00019973,2]
[374633342,1753389048659,-500.0,0.00019973,2]
[374633343,1753389048669,-500.0,0.00019973,2]
[374633344,1753389048678,-500.0,0.00019973,2]
[374633345,1753389048688,-507.58685935,0.00019973,2]
[374633346,1753389048698,-500.0,0.00019973,2]
[374633347,1753389048708,-562.39892855,0.00019973,2]
[374633348,1753389048719,-500.0,0.00019973,2]
[374633349,1753389048729,-500.0,0.00019973,2]
[374633350,1753389048738,-505.53775134,0.00019973,2]
[374633351,1753389048748,-500.0,0.00019973,2]
[374633352,1753389048758,-500.0,0.00019973,2]
[374633353,1753389048768,-1442.3659599,0.0001999,2]
[374633354,1753389048778,-100000.0,0.0001999,2]
[374633355,1753389048787,-697.76373975,0.00019999,2]
[374633356,1753389048798,-173.613,0.0002,2]
[374633357,1753389048807,-151.67426413,0.0002,2]
[374633358,1753389048817,-160.0,0.0002,3]
[374633359,1753389048827,-16000.0,0.0002,2]
[374633360,1753389048838,-35850.79696441,0.0002,2]
[374633361,1753389048848,-49374.43588962,0.0002,2]
[374633362,1753389048859,-30676.34952064,0.0002,2]
[374633363,1753389048870,-1000.0,0.00020021,2]
[374633364,1753389048890,-1000.0,0.00020021,2]
[374633365,1753389048904,-500.0,0.00020021,2]
[374633366,1753389048915,-503.50332979,0.00020021,2]
[374633367,1753389048925,-1000.0,0.00020021,2]
[374633368,1753389048936,-1000.0,0.00020021,2]
[374633369,1753389048946,-1000.0,0.00020021,2]
[374633370,1753389048956,-1000.0,0.00020021,2]
[374633371,1753389048966,-1000.0,0.00020021,2]
[374633372,1753389048976,-1000.0,0.00020021,2]
[374633373,1753389048986,-1000.0,0.00020021,2]
[374633374,1753389048996,-207.53435214,0.00020027,3]
[374633375,1753389049006,-442.98552897,0.00020041,2]
[374633376,1753389049016,-460.0,0.00020041,2]
[374633377,1753389049026,-601.15,0.00020041,2]
[374633378,1753389049036,-645.07,0.00020041,2]
[374633379,1753389049047,-460.0,0.00020041,2]
[374633380,1753389049057,-682.46,0.00020041,2]
[374633381,1753389049066,-460.0,0.00020041,2]
[374633382,1753389049076,-216.28315481,0.00020041,2]
[374633383,1753389049085,-460.0,0.00020041,2]
[374633384,1753389049095,-7953.31,0.00020041,2]
[374633385,1753389049104,-460.0,0.00020041,2]
[374633386,1753389049114,-2801.23,0.00020041,2]
[374633387,1753389049124,-460.0,0.00020041,2]
[374633388,1753389049134,-460.0,0.00020041,2]
[374633389,1753389049144,-612.35,0.00020041,2]
[374633390,1753389049153,-769.11,0.00020041,2]
[374633391,1753389049163,-2563.23,0.00020041,2]
[374633392,1753389049172,-460.0,0.00020041,2]
[374633393,1753389049181,-460.0,0.00020041,2]
[374633394,1753389049190,-3081.33,0.00020041,2]
[374633395,1753389049201,-467.95382513,0.00020041,2]
[374633396,1753389049211,-460.0,0.00020041,2]
[374633397,1753389049221,-718.43,0.00020041,2]
[374633398,1753389049230,-460.0,0.00020041,2]
[374633399,1753389049240,-460.0,0.00020041,2]
[374633400,1753389049250,-460.0,0.00020042,2]
[374633401,1753389049260,-460.0,0.00020042,2]
[374633402,1753389049269,-460.0,0.00020042,2]
[374633403,1753389049279,-460.0,0.00020042,2]
[374633404,1753389049289,-2220.01,0.00020042,2]
[374633405,1753389049299,-460.0,0.00020042,2]
[374633406,1753389049309,-460.0,0.00020042,2]
[374633407,1753389049319,-460.0,0.00020042,2]
[374633408,1753389049328,-2050.54,0.00020042,2]
[374633409,1753389049338,-936.79,0.00020042,2]
[374633410,1753389049349,-853.52,0.00020042,2]
[374633411,1753389049358,-518.34,0.00020042,2]
[374633412,1753389049368,-460.0,0.00020042,2]
[374633413,1753389049378,-678.23,0.00020042,2]
[374633414,1753389049388,-1208.71,0.00020042,2]
[374633415,1753389049399,-460.0,0.00020042,2]
[374633416,1753389049409,-460.0,0.00020042,2]
[374633417,1753389049419,-460.0,0.00020042,2]
[374633418,1753389049430,-861.27,0.00020042,2]
[374633419,1753389049440,-460.0,0.00020042,2]
[374633420,1753389049451,-764.72,0.00020042,2]
[374633421,1753389049461,-460.0,0.00020042,2]
[374633422,1753389049471,-5976.16,0.00020042,2]
[374633423,1753389049481,-456.70958115,0.00020043,2]
[374633424,1753389049491,-460.0,0.00020043,2]
[374633425,1753389049500,-494.81,0.00020043,2]
[374633426,1753389049510,-460.0,0.00020043,2]
[374633427,1753389049519,-460.0,0.00020043,2]
[374633428,1753389049530,-207.97523436,0.00020043,2]
[374633429,1753389049540,-491.9,0.00020043,2]
[374633430,1753389049549,-460.0,0.00020043,2]
[374633431,1753389049560,-888.2,0.00020043,2]
[374633432,1753389049569,-270.26812957,0.00020043,2]
[374633433,1753389049579,-460.0,0.00020043,2]
[374633434,1753389049589,-460.0,0.00020043,2]